bitfinex/quotes_ETHUSD_20250620
["timestamp","ask_amount","ask_price","bid_price","bid_amount"]
[1750378617845,18.48277866,2530.8,2530.7,3.95143034]
[1750378618029,12.03777866,2530.8,2530.7,3.95143034]
[1750378618406,18.48377866,2530.8,2530.7,3.95143034]
[1750378618732,12.03777866,2530.8,2530.7,3.95143034]
[1750378618981,18.48377866,2530.8,2530.7,3.95143034]
[1750378619766,16.81573803,2530.8,2530.7,3.95143034]
[1750378620158,16.81569359,2530.8,2530.7,3.95143034]
[1750378620677,16.446,2530.8,2530.7,3.95143034]
[1750378624861,16.446,2530.8,2530.6,3.95160256]
[1750378624862,7.2678,2530.8,2530.6,3.95160256]
[1750378625174,0.0605,2530.7,2530.6,3.95160256]
[1750378626171,0.0605,2530.7,2530.5,3.95169235]
[1750378626474,16.5055,2530.6,2530.5,3.95169235]
[1750378627159,16.445,2530.6,2530.5,3.95169235]
[1750378627462,10.0605,2530.5,2530.4,3.95189032]
[1750378627835,10.0,2530.5,2530.4,3.95189032]
[1750378629480,10.0574,2530.5,2530.4,3.95189032]
[1750378630384,6.445,2530.6,2530.4,3.95194435]
[1750378630687,8.22908,2530.6,2530.5,3.95178818]
[1750378630836,8.22908,2530.6,2530.4,3.95186728]
[1750378631040,0.0574,2530.5,2530.4,3.95186728]
[1750378631278,0.0574,2530.4,2530.3,3.95204521]
[1750378631485,8.1704,2530.4,2530.3,3.95204521]
[1750378634116,0.0574,2530.3,2530.2,3.9522403]
[1750378635206,8.1704,2530.4,2530.3,3.95210054]
[1750378635394,18.113,2530.4,2530.3,3.95210054]
[1750378636581,10.0,2530.4,2530.3,3.95210054]
[1750378636766,16.446,2530.4,2530.3,3.95210054]
[1750378637161,10.0,2530.3,2530.2,3.95223184]
[1750378637406,0.0574,2530.3,2530.2,3.95223184]
[1750378639469,6.446,2530.4,2530.3,3.95210054]
[1750378639669,6.5034,2530.4,2530.3,3.95210054]
[1750378639870,1.668,2530.5,2530.4,3.95194435]
[1750378640224,18.114,2530.5,2530.4,3.95194435]
[1750378641480,18.1714,2530.5,2530.4,3.95194435]
[1750378645088,18.1714,2530.5,2530.3,3.9520128]
[1750378645424,0.0574,2530.3,2530.2,3.95225673]
[1750378645598,16.5034,2530.3,2530.2,3.95225673]
[1750378647025,10.0,2530.2,2530.1,0.01062458]
[1750378647250,0.42751343,2530.2,2530.1,3.96303752]
[1750378647426,0.42751364,2530.2,2530.1,3.96303752]
[1750378648332,11.6567485,2530.2,2530.1,0.01062458]
[1750378648926,11.65674714,2530.2,2530.1,0.01062458]
[1750378649134,16.15902329,2530.2,2530.1,0.01062458]
[1750378651546,16.15869649,2530.2,2530.1,0.01062458]
[1750378651837,16.15871733,2530.2,2530.1,0.01062458]
[1750378652002,16.15871942,2530.2,2530.1,0.01062458]
[1750378653244,16.15855429,2530.2,2530.1,0.01062458]
[1750378653605,16.15862478,2530.2,2530.1,0.01062458]
[1750378654840,16.15865467,2530.2,2530.1,0.01062458]
[1750378657265,46.15865467,2530.2,2530.1,0.01062458]
[1750378660558,46.15804982,2530.2,2530.1,0.01062458]
[1750378660758,45.78889159,2530.2,2530.1,0.01062458]
[1750378660958,46.15804297,2530.2,2530.1,0.01062458]
[1750378661150,46.15804616,2530.2,2530.1,0.01062458]
[1750378662165,45.78889159,2530.2,2530.1,0.01062458]
[1750378662368,46.15806921,2530.2,2530.1,0.01062458]
[1750378663554,46.1580122,2530.2,2530.1,0.01062458]
[1750378664034,55.6540122,2530.2,2530.1,0.01062458]
[1750378664784,55.65401444,2530.2,2530.1,0.01062458]
[1750378665064,55.65396091,2530.2,2530.1,0.01062458]
[1750378666369,55.65394887,2530.2,2530.1,0.01062458]
[1750378667290,55.28489159,2530.2,2530.1,0.01062458]
[1750378667441,55.65394941,2530.2,2530.1,0.01062458]
[1750378667637,25.65394941,2530.2,2530.1,0.01062458]
[1750378667836,55.65394941,2530.2,2530.1,0.01062458]
[1750378669240,55.65397882,2530.2,2530.1,0.01062458]
[1750378669739,59.81672209,2530.2,2530.1,0.01062458]
[1750378669953,51.70172209,2530.2,2530.1,0.01062458]
[1750378670265,59.81672209,2530.2,2530.1,0.01062458]
[1750378670488,51.97382209,2530.2,2530.1,0.01062458]
[1750378670687,21.53308723,2530.2,2530.1,3.96303752]
[1750378671078,27.98013279,2530.2,2530.1,3.96303752]
[1750378671273,0.6123,2530.1,2529.8,0.0605]
[1750378671486,10.0,2529.9,2529.8,0.0605]
[1750378671684,10.36913279,2529.9,2529.8,0.0605]
[1750378672093,10.3692918,2529.9,2529.8,0.0605]
[1750378674077,10.36935459,2529.9,2529.8,4.01338165]
[1750378674893,10.0,2529.9,2529.8,4.01338165]
[1750378675217,10.36953131,2529.9,2529.8,0.0605]
[1750378675576,13.05077896,2529.9,2529.8,0.0605]
[1750378675975,12.68118857,2529.9,2529.8,0.0605]
[1750378676175,13.05078385,2529.9,2529.8,0.0605]
[1750378676610,13.05078327,2529.9,2529.8,0.0605]
[1750378676808,13.05109945,2529.9,2529.8,0.0605]
[1750378677705,12.68118857,2529.9,2529.8,0.0605]
[1750378677900,13.11344049,2529.9,2529.8,0.0605]
[1750378678222,23.10910307,2529.9,2529.8,0.0605]
[1750378679801,23.10954262,2529.9,2529.8,0.0605]
[1750378680307,10.0,2529.4,2528.9,0.8009]
[1750378680493,15.49293718,2529.2,2528.9,0.8009]
[1750378680695,10.0,2529.0,2528.9,4.75517467]
[1750378681028,10.37029673,2529.0,2528.9,4.81547467]
[1750378681796,10.37029673,2529.0,2528.4,0.8265]
[1750378681997,6.81629673,2528.9,2528.7,3.95460117]
[1750378682230,11.668,2528.8,2528.7,3.95460117]
[1750378682403,12.03805233,2528.8,2528.7,3.95460117]
[1750378682728,12.03805774,2528.8,2528.7,3.95460117]
[1750378683031,11.668,2528.8,2528.7,3.95460117]
[1750378684227,11.668,2528.8,2528.7,4.01490117]
[1750378686094,11.668,2528.8,2528.7,4.76340117]
[1750378686296,10.55,2529.4,2529.0,3.98519876]
[1750378686509,9.54449035,2529.3,2528.9,3.95417108]
[1750378687231,10.0,2529.2,2528.9,3.98527108]
[1750378687433,10.0,2529.0,2528.9,3.98527108]
[1750378687734,3.95343829,2529.5,2529.1,3.95387754]
[1750378687735,1.668,2529.2,2529.1,3.95387754]
[1750378687928,18.115,2529.2,2529.1,3.98497754]
[1750378688335,18.115,2529.2,2529.1,0.0311]
[1750378689530,10.0,2529.1,2528.9,3.95420268]
[1750378689723,1.668,2529.2,2529.0,0.0311]
[1750378690030,6.447,2529.1,2529.0,3.98523206]
[1750378690408,6.447,2529.1,2529.0,0.0311]
[1750378692435,6.447,2529.1,2528.8,4.73205696]
[1750378692635,6.447,2529.1,2528.9,4.01478008]
[1750378693102,6.447,2529.1,2528.9,0.0605]
[1750378693505,6.447,2529.1,2528.9,4.01478254]
[1750378693901,6.447,2529.1,2528.9,3.95428254]
[1750378694106,16.447,2529.1,2528.8,0.7777]
[1750378694308,19.74026649,2529.1,2528.8,0.7777]
[1750378695136,19.74026649,2529.1,2528.8,4.73213176]
[1750378696818,19.67876649,2529.1,2528.9,3.95427066]
[1750378697319,16.447,2529.1,2528.9,3.95427066]
[1750378698346,16.447,2529.1,2528.8,4.73205425]
[1750378698517,16.447,2529.1,2528.8,4.76275425]
[1750378699231,16.447,2529.1,2528.8,4.73205425]
[1750378699431,16.447,2529.1,2528.7,3.95450361]
[1750378699432,16.5085,2529.1,2528.7,3.95450361]
[1750378699618,19.19712834,2529.1,2528.7,3.95450361]
[1750378700041,19.19712834,2529.1,2528.8,3.95444058]
[1750378700242,19.19712834,2529.1,2528.7,3.95450671]
[1750378700638,23.08970784,2529.1,2528.6,0.7925]
[1750378700840,10.7839,2528.9,2528.6,3.95467909]
[1750378701044,6.447,2528.8,2528.6,3.95467909]
[1750378701941,6.447,2528.8,2528.4,3.95501926]
[1750378702139,6.447,2528.8,2528.5,3.95478057]
[1750378702305,6.5085,2528.8,2528.5,3.95478057]
[1750378702503,6.5085,2528.8,2528.6,3.95475048]
[1750378702708,6.447,2528.8,2528.7,3.95460117]
[1750378702909,6.447,2528.8,2528.6,3.95468111]
[1750378703109,6.447,2528.8,2528.7,3.95460117]
[1750378703730,6.447,2528.8,2528.6,3.95466009]
[1750378703914,6.447,2528.8,2528.6,3.95473262]
[1750378705249,1.668,2528.7,2528.5,3.95482604]
[1750378705442,6.447,2528.6,2528.5,3.95482604]
[1750378709262,6.5085,2528.6,2528.5,3.95482604]
[1750378710572,6.447,2528.6,2528.5,3.95482604]
[1750378711315,17.59345467,2528.6,2528.1,0.8013]
[1750378711654,0.0615,2528.5,2528.3,3.95507943]
[1750378711854,6.447,2528.4,2528.3,3.95507943]
[1750378713259,6.447,2528.4,2528.3,4.01557943]
[1750378713436,6.447,2528.4,2528.3,3.95507943]
[1750378716062,17.20634547,2528.4,2528.3,3.95522683]
[1750378717223,17.20634547,2528.4,2528.3,3.93280004]
[1750378717548,16.447,2528.4,2528.3,3.99330004]
[1750378718957,16.447,2528.4,2528.3,4.77310004]
[1750378718958,10.0,2528.4,2528.3,4.77310004]
[1750378723583,0.7561,2529.2,2528.6,0.8]
[1750378723765,1.668,2529.2,2529.1,3.95397572]
[1750378724084,8.115,2529.2,2529.1,3.95397572]
[1750378724255,18.115,2529.2,2529.1,3.95397572]
[1750378724453,0.7561,2529.5,2529.0,3.95409638]
[1750378724683,2.11777225,2529.5,2529.4,3.95350676]
[1750378724878,20.23277225,2529.5,2529.4,3.95350676]
[1750378725577,3.78577225,2529.5,2529.4,3.95350676]
[1750378725778,10.23277225,2529.5,2529.4,3.95350676]
[1750378726080,20.23277225,2529.5,2529.4,3.95350676]
[1750378727081,11.668,2529.5,2529.4,3.95350676]
[1750378727253,18.114,2529.5,2529.4,3.95350676]
[1750378727464,11.668,2529.5,2529.4,3.95350676]
[1750378727669,1.668,2529.5,2529.4,3.95350676]
[1750378727874,8.114,2529.5,2529.4,3.95350676]
[1750378728083,18.114,2529.5,2529.4,3.95350676]
[1750378728460,11.668,2529.5,2529.4,3.95350676]
[1750378732504,10.0,2529.5,2529.4,3.95350676]
[1750378732708,12.57695447,2529.6,2529.5,4.76455046]
[1750378732999,2.57695447,2529.6,2529.5,4.76455046]
[1750378733184,0.8813,2530.4,2530.3,3.95210054]
[1750378733389,18.9933,2530.4,2530.3,3.95210054]
[1750378733590,21.84243,2530.4,2530.3,3.95210054]
[1750378733792,10.0,2530.3,2530.2,3.95216775]
[1750378733981,0.0588,2530.3,2530.2,3.95216775]
[1750378734369,8.1708,2530.3,2530.2,3.95216775]
[1750378735104,8.1708,2530.3,2530.1,3.95234328]
[1750378735402,10.35568999,2530.3,2529.6,0.8074]
[1750378735571,0.0588,2530.2,2529.9,3.95263857]
[1750378735771,10.0,2530.0,2529.9,3.95263857]
[1750378739108,13.91068999,2530.3,2529.9,3.95263857]
[1750378739282,9.63741912,2530.2,2529.9,3.95263857]
[1750378739481,9.69621912,2530.2,2529.9,3.95263857]
[1750378739911,9.69621912,2530.2,2530.0,3.95255836]
[1750378740315,13.19341912,2530.2,2530.1,3.95241294]
[1750378740619,16.444,2530.2,2530.1,3.95241294]
[1750378741733,10.0,2530.2,2530.1,3.95241294]
[1750378742032,1.7248,2530.5,2530.4,3.95194435]
[1750378742187,18.1678,2530.5,2530.4,3.95194435]
[1750378742384,0.0588,2531.1,2530.4,0.8313]
[1750378742601,0.0588,2530.7,2530.4,3.95179449]
[1750378742802,6.5018,2530.6,2530.5,3.95178818]
[1750378745613,10.0588,2530.9,2530.5,3.95178818]
[1750378745813,6.5018,2530.8,2530.6,3.95151524]
[1750378746153,0.0588,2530.7,2530.6,3.95151524]
[1750378746859,0.0588,2530.7,2530.5,3.95170651]
[1750378747038,6.443,2530.6,2530.5,3.95170651]
[1750378748369,0.0588,2530.7,2530.5,3.95170651]
[1750378748564,6.442,2530.6,2530.5,3.95170651]
[1750378749461,6.5023,2530.6,2530.5,3.95170651]
[1750378749646,6.442,2530.6,2530.5,3.95170651]
[1750378750020,0.44900473,2530.8,2530.6,3.95161777]
[1750378750327,6.442,2530.7,2530.6,3.95161777]
[1750378752364,6.5023,2530.7,2530.6,3.95161777]
[1750378752666,10.0603,2530.9,2530.7,3.95139347]
[1750378752868,10.0603,2530.9,2530.8,3.95131974]
[1750378753066,17.75502,2530.9,2530.7,3.95141546]
[1750378753359,0.0603,2530.8,2530.7,3.95141546]
[1750378754535,16.5013,2530.8,2530.7,3.95141546]
[1750378755223,16.5013,2530.8,2530.6,3.95153767]
[1750378755571,0.0603,2530.7,2530.5,3.95169293]
[1750378755724,16.441,2530.6,2530.5,3.95169293]
[1750378756830,11.25272,2530.9,2530.6,0.8238]
[1750378757029,6.441,2530.8,2530.7,3.95147587]
[1750378757266,6.5013,2530.8,2530.7,3.95147587]
[1750378757435,8.56478087,2530.8,2530.7,3.95147587]
[1750378757638,8.50448087,2530.8,2530.7,3.95147587]
[1750378757844,10.0,2530.9,2530.8,3.95131974]
[1750378758038,16.441,2530.9,2530.8,3.95131974]
[1750378758460,10.0,2530.9,2530.8,3.95131974]
[1750378758662,16.441,2530.9,2530.8,3.95131974]
[1750378759077,11.89294,2530.9,2530.8,3.95131974]
[1750378759227,18.33394,2530.9,2530.8,3.95131974]
[1750378759427,16.441,2530.9,2530.8,3.95131974]
[1750378759769,10.0,2530.9,2530.8,3.95131974]
[1750378759957,16.441,2530.9,2530.8,3.95131974]
[1750378760576,10.0,2530.9,2530.8,3.95131974]
[1750378760774,16.441,2530.9,2530.8,3.95131974]
[1750378760961,10.0,2530.9,2530.8,4.00791974]
[1750378762852,10.0,2530.9,2530.8,3.95131974]
[1750378763026,10.0,2530.9,2530.8,4.00791974]
[1750378763357,1.86015896,2531.4,2531.3,3.95053924]
[1750378763561,8.105,2531.4,2531.3,3.95053924]
[1750378763766,18.105,2531.4,2531.3,3.95053924]
[1750378763973,10.0,2531.4,2531.3,3.95053924]
[1750378764169,16.44,2531.4,2531.3,3.95053924]
[1750378764371,10.0,2531.4,2531.3,3.95053924]
[1750378764529,6.5003,2531.5,2531.4,3.95038318]
[1750378764734,16.5003,2531.5,2531.4,3.95038318]
[1750378765447,0.0603,2531.4,2531.3,3.95053924]
[1750378767957,0.0603,2531.4,2530.9,3.95106501]
[1750378768171,5.49293718,2531.1,2530.9,3.95106501]
[1750378768469,6.4993,2531.0,2530.9,3.95106501]
[1750378768977,16.439,2531.0,2530.8,3.95127139]
[1750378769135,10.0603,2530.9,2530.8,3.95127139]
[1750378770470,0.0603,2530.9,2530.8,3.95127139]
[1750378770673,10.0603,2530.9,2530.8,3.95127139]
[1750378770972,16.4993,2531.0,2530.9,3.95116361]
[1750378773074,10.0,2530.9,2530.8,3.9512937]
[1750378773378,0.0603,2530.9,2530.8,3.9512937]
[1750378773745,0.0603,2530.9,2530.4,0.7522]
[1750378773746,10.0603,2530.9,2530.4,0.7522]
[1750378773935,18.90713,2531.0,2530.7,3.95137374]
[1750378773936,16.439,2530.8,2530.7,3.95137374]
[1750378776780,10.0,2530.8,2530.7,3.95137374]
[1750378777096,16.439,2530.8,2530.7,3.95137374]
[1750378779988,10.0,2530.8,2530.7,3.95137374]
[1750378780287,16.439,2530.8,2530.7,4.74167079]
[1750378780789,16.439,2530.8,2530.7,4.80147079]
[1750378781166,10.0,2530.8,2530.7,5.56537079]
[1750378781366,16.439,2530.8,2530.7,5.56537079]
[1750378781786,10.0,2530.8,2530.7,5.56537079]
[1750378782093,10.0,2530.8,2530.7,3.95137374]
[1750378782849,0.0579,2530.7,2530.6,3.95153869]
[1750378783048,0.0579,2530.7,2529.9,4.01251309]
[1750378783049,0.7546,2530.5,2530.0,4.71635187]
[1750378783276,6.4969,2530.4,2530.3,3.95210054]
[1750378783502,0.0579,2530.3,2529.7,4.80170239]
[1750378783670,6.439,2530.2,2530.0,3.95243191]
[1750378783870,0.0579,2530.1,2530.0,3.95243191]
[1750378785196,16.4969,2530.2,2530.1,3.95241294]
[1750378787367,18.219105,2530.2,2530.1,3.95241294]
[1750378788571,0.0579,2530.1,2530.0,3.9524893]
[1750378788776,0.8304,2530.1,2530.0,3.9524893]
[1750378788975,0.7725,2530.1,2530.0,3.9524893]
[1750378789182,0.8304,2530.1,2530.0,3.9524893]
[1750378789377,3.27885422,2530.1,2530.0,3.9524893]
[1750378789962,0.8304,2530.1,2530.0,3.9524893]
[1750378790162,6.439,2530.2,2530.1,3.95241294]
[1750378790398,6.4969,2530.2,2530.1,3.95241294]
[1750378791804,0.0579,2530.2,2530.1,3.95241294]
[1750378792010,18.1629,2530.2,2530.1,3.95241294]
[1750378792197,20.128205,2530.2,2530.1,3.95241294]
[1750378793704,10.0579,2530.1,2529.9,3.95261008]
[1750378793894,16.4979,2530.0,2529.9,3.95261008]
[1750378794412,16.44,2530.0,2529.9,3.95261008]
[1750378794708,16.4979,2530.0,2529.9,3.95261008]
[1750378795577,16.44,2530.0,2529.9,3.95261008]
[1750378799018,10.0,2530.0,2529.9,4.75681008]
[1750378799321,16.44,2530.0,2529.9,3.95261008]
[1750378799500,16.4979,2530.0,2529.9,3.9527254]
[1750378800123,18.39704,2530.0,2529.9,3.9527254]
[1750378800328,10.0,2529.9,2529.8,3.95280059]
[1750378800633,0.0579,2529.9,2529.8,3.95280059]
[1750378800835,10.0579,2529.9,2529.8,3.95280059]
[1750378801420,0.0579,2529.8,2529.5,3.95325522]
[1750378801585,10.0,2529.6,2529.5,3.95325522]
[1750378807005,10.0,2529.6,2529.5,4.72655522]
[1750378807402,10.8044,2529.6,2529.5,3.95325522]
[1750378807608,10.8623,2529.6,2529.5,3.95325522]
[1750378808033,0.0624,2529.5,2529.4,3.95342058]
[1750378808428,0.0624,2529.5,2529.3,3.95366306]
[1750378808429,10.0624,2529.4,2529.3,3.95366306]
[1750378809191,10.0624,2529.4,2529.1,3.95390507]
[1750378809428,6.441,2529.3,2529.2,3.95373641]
[1750378809634,11.79308,2529.5,2529.4,3.95350676]
[1750378809932,18.23408,2529.5,2529.4,3.95350676]
[1750378812230,18.23408,2529.5,2529.2,3.95377867]
[1750378812529,18.17168,2529.5,2529.2,3.95370567]
[1750378812842,0.0624,2529.4,2529.2,3.95370567]
[1750378812999,16.5034,2529.3,2529.2,3.95370567]
[1750378814128,16.441,2529.3,2529.2,3.95370567]
[1750378817114,16.5034,2529.3,2529.2,3.95370567]
[1750378819240,0.0624,2529.1,2528.5,0.8172]
[1750378819537,0.0624,2529.1,2527.9,7.15793718]
[1750378819538,0.0624,2528.7,2528.1,0.8146]
[1750378819709,10.0,2528.5,2528.1,0.8146]
[1750378819903,0.0624,2528.2,2528.1,3.95553973]
[1750378820099,16.5034,2528.2,2528.1,3.95553973]
[1750378820299,16.441,2528.2,2528.1,3.95553973]
[1750378822152,16.441,2528.2,2527.6,0.8146]
[1750378822343,16.441,2528.2,2528.0,3.9556962]
[1750378822344,8.0851,2528.2,2528.0,3.9556962]
[1750378822656,6.5034,2528.2,2528.0,3.9556962]
[1750378823351,6.441,2528.2,2527.9,3.95577086]
[1750378823558,0.0624,2528.1,2527.9,3.95577086]
[1750378824056,16.442,2528.0,2527.9,3.95577086]
[1750378825629,16.5044,2528.0,2527.9,3.95577086]
[1750378828942,0.0624,2527.9,2527.8,3.95591896]
[1750378829155,8.33906,2528.0,2527.7,3.956082]
[1750378829372,6.32143718,2527.8,2526.9,0.0581]
[1750378829572,6.32143718,2527.8,2526.8,4.76817434]
[1750378829573,0.0624,2527.6,2527.5,3.95641449]
[1750378829758,7.07514372,2527.7,2527.4,3.95660881]
[1750378829759,6.5054,2527.7,2527.6,3.9563222]
[1750378830157,6.5054,2527.7,2527.5,3.95639494]
[1750378830357,16.443,2527.7,2527.5,3.95639494]
[1750378830587,10.0624,2527.6,2527.5,3.95639494]
[1750378832195,10.0624,2527.6,2527.1,0.0581]
[1750378832196,11.665,2527.6,2527.3,3.95676539]
[1750378832347,10.0,2527.4,2527.3,3.95676539]
[1750378832747,10.0624,2527.4,2527.3,3.95676539]
[1750378834177,14.097149,2527.7,2527.6,3.9563222]
[1750378834378,20.0553685,2527.7,2527.6,3.9563222]
[1750378834690,20.0553685,2527.7,2527.4,3.95657728]
[1750378834691,10.0,2527.6,2527.5,3.95641526]
[1750378834863,13.36188446,2527.6,2527.5,3.95641526]
[1750378837586,10.0553685,2527.7,2527.6,3.9563222]
[1750378837587,11.665,2527.7,2527.6,3.9563222]
[1750378837764,18.11,2527.7,2527.6,3.9563222]
[1750378838449,11.665,2527.7,2527.6,3.9563222]
[1750378838807,6.445,2528.1,2527.7,4.76846568]
[1750378839003,10.0,2528.0,2527.9,3.95585268]
[1750378839671,1.665,2528.3,2528.2,3.95538327]
[1750378840168,1.665,2528.3,2528.2,4.73598327]
[1750378840387,8.11,2528.3,2528.2,4.79308327]
[1750378842045,8.11,2528.3,2528.2,4.73598327]
[1750378843486,11.21357701,2528.8,2528.6,3.95475757]
[1750378843786,11.21357701,2528.8,2528.2,0.7806]
[1750378843787,2.55225142,2528.8,2528.7,3.95460117]
[1750378843987,2.55225142,2528.8,2528.6,3.95467049]
[1750378843988,2.49445142,2528.8,2528.6,3.95467049]
[1750378844152,0.0578,2528.7,2528.6,3.95467049]
[1750378844596,10.0578,2528.7,2528.6,3.95467049]
[1750378844903,16.5018,2528.7,2528.6,3.95467049]
[1750378845071,8.1668,2528.7,2528.6,3.95467049]
[1750378846757,0.783,2529.1,2528.6,4.74562364]
[1750378846958,0.783,2529.6,2529.5,3.95325418]
[1750378847173,0.783,2529.6,2529.0,0.8088]
[1750378847174,0.8408,2529.6,2529.0,0.8659]
[1750378847405,1.665,2529.7,2529.6,3.95319418]
[1750378847569,18.109,2529.7,2529.6,3.95319418]
[1750378847770,21.20291122,2529.7,2529.6,3.95319418]
[1750378848066,11.20291122,2529.7,2529.6,3.95319418]
[1750378848269,8.109,2529.7,2529.6,3.95319418]
[1750378849260,8.1668,2529.7,2529.6,3.95319418]
[1750378849661,8.1668,2529.7,2529.5,3.95335046]
[1750378849662,8.109,2529.7,2529.5,3.95320531]
[1750378849959,10.0578,2529.6,2529.5,3.95320531]
[1750378853658,10.0,2529.7,2529.6,3.95319418]
[1750378853993,6.442,2530.0,2529.8,3.95668165]
[1750378854174,16.442,2530.0,2529.9,3.9527254]
[1750378854370,1.665,2530.3,2530.2,3.95225673]
[1750378854570,3.9513793,2530.8,2529.5,0.7595]
[1750378854571,0.0578,2530.7,2530.0,0.8258]
[1750378854770,10.0,2530.4,2530.2,3.95216371]
[1750378854984,10.0,2530.4,2530.3,3.95210054]
[1750378855575,0.0578,2530.2,2529.5,0.822]
[1750378855783,10.0,2530.0,2529.8,3.9527506]
[1750378855984,6.464,2529.9,2529.8,3.9527506]
[1750378858501,10.0,2529.8,2529.5,3.95322218]
[1750378858802,6.5188,2529.7,2529.3,3.95356828]
[1750378858963,0.0578,2529.6,2529.4,3.95340962]
[1750378859168,16.461,2529.5,2529.4,3.95340962]
[1750378865704,16.5188,2529.5,2529.3,3.95363184]
[1750378865883,10.0,2529.4,2529.1,3.95397572]
[1750378866083,10.0,2529.2,2529.1,3.95388088]
[1750378866308,2.4732,2529.5,2529.4,3.95350676]
[1750378866629,10.0,2529.6,2529.4,3.95341918]
[1750378866630,1.7348,2529.6,2529.4,3.95341918]
[1750378866832,10.0,2529.4,2529.3,3.95353777]
[1750378867122,10.0578,2529.4,2529.3,3.95353777]
[1750378867487,0.0578,2529.3,2529.2,3.95374068]
[1750378867689,16.5238,2529.3,2529.2,3.95374068]
[1750378868317,16.5238,2529.3,2529.1,3.95392319]
[1750378868318,10.0,2529.2,2528.8,0.8076]
[1750378868517,0.8771,2529.2,2529.1,3.95385298]
[1750378868710,7.3421,2529.2,2529.1,3.95385298]
[1750378869486,7.3421,2529.2,2529.0,3.95404866]
[1750378869687,0.0617,2529.1,2529.0,3.95404866]
[1750378871006,7.2804,2529.2,2529.1,3.95397572]
[1750378871211,7.3421,2529.2,2529.1,3.95397572]
[1750378872224,7.3421,2529.2,2529.0,3.95404866]
[1750378872225,1.7387,2529.6,2529.4,3.95345938]
[1750378872427,6.5247,2529.5,2529.4,3.95345938]
[1750378872641,10.0,2529.4,2529.0,0.8203]
[1750378872931,10.0,2529.4,2529.3,3.95366306]
[1750378874097,6.466,2529.5,2529.4,3.95343583]
[1750378874309,16.5277,2529.5,2529.4,3.95343583]
[1750378875213,16.466,2529.5,2529.4,3.95343583]
[1750378878748,16.466,2529.5,2529.3,3.95365882]
[1750378878749,16.466,2529.5,2529.3,3.95361591]
[1750378878910,16.5277,2529.5,2529.3,3.95361591]
[1750378879345,16.5277,2529.5,2529.4,3.95350676]
[1750378881243,16.466,2529.5,2529.4,3.95350676]
[1750378885430,16.5277,2529.5,2529.3,3.95364628]
[1750378886117,16.5277,2529.5,2529.4,3.95350676]
[1750378888650,16.466,2529.5,2529.2,3.95374355]
[1750378888960,16.466,2529.5,2529.4,3.95350676]
[1750378890062,10.0,2529.5,2529.4,3.95350676]
[1750378890269,16.454,2529.5,2529.4,3.95350676]
[1750378891483,1.7387,2529.8,2529.7,3.9530379]
[1750378891484,1.677,2529.8,2529.7,3.9530379]
[1750378891638,18.138,2529.8,2529.7,3.9530379]
[1750378892933,18.1997,2529.8,2529.7,3.9530379]
[1750378893334,10.0,2529.8,2529.7,3.9530379]
[1750378893549,10.0,2529.8,2529.7,4.82016747]
[1750378896438,10.0,2529.8,2529.7,4.82016747]
[1750378896949,10.0,2529.8,2529.7,4.87896747]
[1750378898542,10.0,2529.8,2529.7,4.82016747]
[1750378900483,10.0,2529.8,2529.5,0.8272]
[1750378900484,10.0,2529.7,2529.5,3.95330029]
[1750378900685,16.524,2529.6,2529.5,3.95330029]
[1750378900886,0.058,2529.5,2529.4,3.95350676]
[1750378901272,0.8759,2529.5,2529.4,3.95350676]
[1750378901592,0.058,2529.4,2529.3,3.9535725]
[1750378901773,6.466,2529.4,2529.2,3.95373518]
[1750378901974,0.058,2529.3,2529.2,3.95373518]
[1750378905382,0.058,2529.3,2529.1,3.95395526]
[1750378905579,0.8137,2529.1,2528.9,3.95417685]
[1750378905806,6.522,2529.0,2528.9,3.95417685]
[1750378907067,16.464,2529.0,2528.4,0.8047]
[1750378907270,16.464,2529.0,2528.7,3.95452429]
[1750378907271,0.058,2528.8,2528.7,3.95452429]
[1750378907469,16.521,2528.8,2528.7,3.95452429]
[1750378907871,6.463,2528.8,2528.6,3.95470634]
[1750378908103,0.058,2528.7,2528.6,3.95470634]
[1750378908600,0.058,2528.6,2528.2,0.8047]
[1750378908918,16.522,2528.5,2528.4,3.9550704]
[1750378909110,16.522,2528.5,2528.2,3.95531977]
[1750378909111,16.464,2528.5,2528.3,3.95511476]
[1750378909325,0.058,2528.4,2528.3,3.95511476]
[1750378912006,10.058,2528.4,2528.3,3.95511476]
[1750378912209,0.058,2528.3,2528.1,3.95548226]
[1750378912407,10.0,2528.2,2528.1,3.95548226]
[1750378914628,10.058,2528.2,2528.1,3.95548226]
[1750378917157,0.7556,2528.3,2528.2,3.95538327]
[1750378917351,10.0,2528.3,2528.2,3.95538327]
[1750378917553,16.459,2528.3,2528.2,3.95538327]
[1750378918036,10.0,2528.3,2528.2,3.95538327]
[1750378918237,16.459,2528.3,2528.2,3.95538327]
[1750378920471,10.0,2528.3,2528.2,4.74688327]
[1750378920675,1.679,2528.9,2528.8,3.95444479]
[1750378920842,11.679,2528.9,2528.8,3.95444479]
[1750378921033,18.136,2528.9,2528.8,3.95444479]
[1750378921240,0.821,2529.2,2529.1,3.95397572]
[1750378921482,1.679,2529.3,2529.2,3.95381938]
[1750378921679,0.821,2529.4,2529.3,3.95366306]
[1750378921972,1.737,2529.5,2529.4,3.95350676]
[1750378922474,8.2,2529.5,2529.4,3.95350676]
[1750378924176,0.058,2529.2,2529.0,3.95403102]
[1750378924362,16.518,2529.1,2529.0,3.95403102]
[1750378925650,16.46,2529.1,2529.0,3.95403102]
[1750378926955,16.461,2529.1,2529.0,3.95403102]
[1750378929546,10.0574,2529.0,2528.9,3.95414575]
[1750378929782,7.77119665,2529.1,2529.0,3.95413206]
[1750378929983,6.459,2529.1,2529.0,3.95413206]
[1750378931071,6.5164,2529.1,2529.0,3.95413206]
[1750378934490,0.7912,2529.3,2529.2,3.95381938]
[1750378934788,6.454,2529.3,2529.2,3.95381938]
[1750378935191,6.5114,2529.3,2529.2,3.95381938]
[1750378936264,16.5114,2529.3,2529.2,3.95381938]
[1750378936459,19.15132431,2529.3,2529.2,3.95381938]